bitfinex/quotes_BTCUSD_20240811
["timestamp","ask_amount","ask_price","bid_price","bid_amount"]
[1723371872787,0.00833,61248.0,61247.0,2.08333503]
[1723371873520,0.00833,61248.0,61247.0,1.98023503]
[1723371873724,0.00833,61248.0,61247.0,1.93142951]
[1723371874050,0.00833,61248.0,61247.0,1.91742951]
[1723371874256,0.00833,61248.0,61247.0,1.93142951]
[1723371875339,0.00833,61248.0,61247.0,1.36347105]
[1723371875554,0.00833,61248.0,61247.0,1.93146062]
[1723371876040,0.00833,61248.0,61247.0,1.98026614]
[1723371876242,0.00833,61248.0,61247.0,1.93146062]
[1723371877092,0.00833,61248.0,61247.0,1.98027658]
[1723371877226,0.00833,61248.0,61247.0,1.93146062]
[1723371878416,0.00833,61248.0,61247.0,2.00468759]
[1723371878790,0.00833,61248.0,61247.0,1.93146062]
[1723371879352,0.00833,61248.0,61247.0,2.03361416]
[1723371879638,0.00833,61248.0,61247.0,2.03341646]
[1723371880176,0.00833,61248.0,61247.0,2.10664343]
[1723371880626,0.00833,61248.0,61247.0,2.03341646]
[1723371880775,0.00833,61248.0,61247.0,2.10668042]
[1723371882201,0.00833,61248.0,61247.0,2.03341646]
[1723371882599,0.00833,61248.0,61247.0,2.03315524]
[1723371883250,0.00833,61248.0,61247.0,2.13084053]
[1723371884032,0.00833,61248.0,61247.0,2.08203101]
[1723371885113,0.20263,61248.0,61247.0,1.26913919]
[1723371885284,0.20446755,61248.0,61247.0,0.16356794]
[1723371885548,0.2194729,61248.0,61247.0,0.16356794]
[1723371885754,0.5623399,61248.0,61247.0,0.16356794]
[1723371885880,0.7909179,61248.0,61247.0,0.014]
[1723371886083,0.77591255,61248.0,61247.0,0.014]
[1723371886285,0.79092303,61248.0,61247.0,0.014]
[1723371886485,0.1943,61238.0,61236.0,0.3438472]
[1723371886687,0.27798401,61237.0,61236.0,0.0009152]
[1723371886887,0.27798401,61237.0,61236.0,0.13654627]
[1723371887116,0.27798401,61237.0,61236.0,0.1152262]
[1723371887516,0.27798401,61237.0,61236.0,0.0009152]
[1723371888423,0.39229301,61237.0,61236.0,0.0009152]
[1723371888623,0.62091201,61237.0,61236.0,0.0009152]
[1723371888771,0.62107446,61237.0,61236.0,0.0009152]
[1723371889363,0.61907446,61237.0,61236.0,0.0009152]
[1723371889780,0.62107446,61237.0,61236.0,0.0009152]
[1723371889953,0.62207446,61237.0,61236.0,0.0009152]
[1723371890303,0.62107446,61237.0,61236.0,0.0009152]
[1723371890647,0.62207446,61237.0,61236.0,0.0009152]
[1723371890893,0.62107446,61237.0,61236.0,0.0009152]
[1723371891116,0.61907446,61237.0,61236.0,0.0009152]
[1723371891265,0.62007446,61237.0,61236.0,0.0009152]
[1723371891476,1.24396493,61237.0,61236.0,0.0009152]
[1723371891672,0.76769455,61236.0,61235.0,0.0009152]
[1723371891889,1.17534535,61236.0,61235.0,0.0009152]
[1723371892679,1.1735078,61236.0,61235.0,0.0009152]
[1723371893293,1.1735078,61236.0,61219.0,0.00015]
[1723371893294,0.114335,61224.0,61219.0,0.00015]
[1723371893454,0.1943,61223.0,61219.0,0.114492]
[1723371893651,0.0858,61222.0,61219.0,0.00015]
[1723371893928,0.11033755,61220.0,61219.0,0.00015]
[1723371894136,0.19613755,61220.0,61219.0,0.00015]
[1723371894387,0.19613755,61220.0,61219.0,0.114493]
[1723371894633,0.19613755,61220.0,61219.0,0.00015]
[1723371895101,0.766007,61220.0,61219.0,0.00015]
[1723371895301,0.767007,61220.0,61219.0,0.01015]
[1723371895504,0.93072192,61220.0,61219.0,0.01015]
[1723371895658,1.16124247,61220.0,61219.0,0.01015]
[1723371895871,0.93155947,61220.0,61219.0,0.00015]
[1723371896229,0.27497745,61220.0,61208.0,0.0002973]
[1723371896429,0.20199955,61209.0,61208.0,0.0002973]
[1723371896544,0.59453847,61209.0,61208.0,0.0002973]
[1723371896752,0.82326247,61209.0,61208.0,0.0002973]
[1723371897440,1.05198647,61209.0,61208.0,0.0002973]
[1723371898509,1.16664892,61209.0,61208.0,0.0002973]
[1723371898714,1.16848647,61209.0,61208.0,0.0002973]
[1723371899307,1.16048647,61209.0,61208.0,0.0002973]
[1723371899709,1.15864892,61209.0,61208.0,0.0002973]
[1723371899910,1.16048647,61209.0,61208.0,0.0002973]
[1723371900580,1.17448647,61209.0,61208.0,0.0012973]
[1723371901056,1.18442642,61209.0,61208.0,0.0012973]
[1723371901793,1.19842642,61209.0,61208.0,0.0012973]
[1723371902017,1.19842642,61209.0,61208.0,0.0002973]
[1723371902018,1.18442642,61209.0,61208.0,0.0002973]
[1723371902240,1.19842642,61209.0,61208.0,0.0012973]
[1723371905070,2.56404841,61209.0,61208.0,0.0022125]
[1723371905303,0.52932955,61190.0,61189.0,0.0009152]
[1723371905500,0.69314447,61190.0,61189.0,0.0009152]
[1723371906668,0.92010192,61190.0,61189.0,0.0009152]
[1723371906889,0.92193947,61190.0,61189.0,0.0009152]
[1723371907744,0.92110192,61190.0,61189.0,0.0009152]
[1723371908150,0.92293947,61190.0,61189.0,0.0009152]
[1723371908409,0.92393947,61190.0,61189.0,0.0009152]
[1723371908655,0.93402283,61190.0,61189.0,0.0009152]
[1723371910013,0.92393947,61190.0,61189.0,0.0009152]
[1723371911478,0.92210192,61190.0,61189.0,0.0009152]
[1723371912012,1.15273447,61190.0,61189.0,0.0009152]
[1723371912216,1.21184188,61190.0,61189.0,0.0009152]
[1723371912486,1.31000433,61190.0,61189.0,0.0009152]
[1723371912695,1.31184188,61190.0,61189.0,0.0009152]
[1723371913358,1.25173447,61190.0,61189.0,0.0009152]
[1723371913784,1.26573447,61190.0,61189.0,0.0009152]
[1723371913999,1.26473447,61190.0,61189.0,0.0009152]
[1723371914213,1.26473447,61190.0,61189.0,0.0019152]
[1723371914442,1.27873447,61190.0,61189.0,0.0019152]
[1723371914645,1.26473447,61190.0,61189.0,0.0009152]
[1723371914844,1.27873447,61190.0,61189.0,0.0019152]
[1723371914995,1.26473447,61190.0,61189.0,0.0019152]
[1723371915203,1.25073447,61190.0,61189.0,0.0009152]
[1723371915405,1.27873447,61190.0,61189.0,0.0019152]
[1723371915814,1.26473447,61190.0,61189.0,0.0009152]
[1723371916238,0.80714447,61190.0,61189.0,0.0009152]
[1723371916607,1.02193947,61190.0,61189.0,0.0009152]
[1723371916976,0.80714447,61190.0,61189.0,0.0009152]
[1723371917623,0.79314447,61190.0,61189.0,0.0009152]
[1723371917819,0.81814447,61190.0,61189.0,0.0019152]
[1723371917939,1.03293947,61190.0,61189.0,0.0009152]
[1723371918141,1.03293947,61190.0,61189.0,0.0019152]
[1723371918344,0.80414447,61190.0,61189.0,0.0019152]
[1723371918543,0.79314447,61190.0,61189.0,0.0009152]
[1723371918989,0.70214447,61190.0,61189.0,0.0019152]
[1723371919194,0.01283755,61190.0,61189.0,0.0009152]
[1723371919391,0.01283755,61190.0,61189.0,0.1153142]
[1723371919564,0.02283755,61190.0,61189.0,0.0019152]
[1723371919763,0.02283755,61190.0,61189.0,0.1163142]
[1723371919962,0.021,61190.0,61189.0,0.3451132]
[1723371920163,0.021,61190.0,61189.0,0.1163142]
[1723371920368,0.021,61190.0,61189.0,0.3451132]
[1723371920564,0.01,61190.0,61189.0,0.0019152]
[1723371921011,0.019,61190.0,61189.0,0.0019152]
[1723371921425,0.00183755,61193.0,61189.0,0.0009152]
[1723371921626,0.00183755,61193.0,61190.0,0.114397]
[1723371921997,0.00183755,61193.0,61189.0,0.1163132]
[1723371922217,0.00183755,61193.0,61189.0,0.1153132]
[1723371922405,0.00183755,61193.0,61189.0,0.1193132]
[1723371922750,0.00183755,61192.0,61189.0,0.1153132]
[1723371923168,0.00183755,61193.0,61189.0,0.1153132]
[1723371923531,0.00283755,61193.0,61189.0,0.1153132]
[1723371923734,0.00283755,61193.0,61192.0,0.220094]
[1723371923735,0.001,61193.0,61192.0,0.220094]
[1723371924203,0.001,61193.0,61192.0,0.448882]
[1723371924408,0.11621855,61199.0,61193.0,0.228783]
[1723371924615,0.114384,61197.0,61193.0,0.114391]
[1723371924816,0.00183755,61195.0,61193.0,0.114391]
[1723371924997,0.00183755,61195.0,61194.0,0.11439]
[1723371925530,0.00183755,61195.0,61192.0,0.221092]
[1723371925731,0.00183755,61195.0,61193.0,0.114391]
[1723371925931,0.005,61199.0,61193.0,0.114391]
[1723371925932,0.00683755,61199.0,61193.0,0.0797]
[1723371926143,0.00683755,61199.0,61193.0,0.308482]
[1723371926347,0.00683755,61199.0,61196.0,0.114385]
[1723371926551,0.005,61199.0,61197.0,0.114383]
[1723371926899,0.4713,61201.0,61197.0,0.114383]
[1723371927303,0.4713,61201.0,61198.0,0.114381]
[1723371927708,0.4713,61201.0,61193.0,0.001]
[1723371927709,0.114388,61195.0,61193.0,0.001]
[1723371927907,0.0817,61196.0,61189.0,0.0009152]
[1723371928122,0.0817,61196.0,61190.0,0.13573032]
[1723371928324,0.114388,61195.0,61191.0,0.13573032]
[1723371928557,0.00183755,61191.0,61190.0,0.114396]
[1723371928849,0.00183755,61191.0,61190.0,0.13573235]
[1723371929053,0.114391,61194.0,61190.0,0.13573235]
[1723371929258,0.00183755,61190.0,61189.0,0.1153142]
[1723371929458,0.00183755,61190.0,61189.0,0.13664755]
[1723371929660,0.11623455,61190.0,61189.0,0.0009152]
[1723371929891,0.343192,61190.0,61189.0,0.0009152]
[1723371930096,0.91873947,61190.0,61189.0,0.0009152]
[1723371930304,0.91690192,61190.0,61189.0,0.0009152]
[1723371930508,0.70559892,61190.0,61189.0,0.0009152]
[1723371930685,0.68994447,61190.0,61189.0,0.0009152]
[1723371931520,0.69510692,61190.0,61189.0,0.0009152]
[1723371931728,0.69694447,61190.0,61189.0,0.0009152]
[1723371931931,0.71259308,61190.0,61189.0,0.0009152]
[1723371932136,0.70375553,61190.0,61189.0,0.0019152]
[1723371932336,0.71077443,61190.0,61189.0,0.0019152]
[1723371932740,0.71261198,61190.0,61189.0,0.0019152]
[1723371932942,0.71077443,61190.0,61189.0,0.0019152]
[1723371933373,0.71777443,61190.0,61189.0,0.0019152]
[1723371933784,0.03150506,61190.0,61189.0,0.0019152]
[1723371933991,0.01583755,61190.0,61189.0,0.0019152]
[1723371934418,0.01583755,61190.0,61189.0,0.1163142]
[1723371934617,0.014,61190.0,61189.0,0.0019152]
[1723371934822,0.014,61190.0,61189.0,0.1163142]
[1723371935233,0.014,61190.0,61189.0,0.48085177]
[1723371935409,0.00183755,61195.0,61192.0,0.114393]
[1723371935561,0.00183755,61195.0,61193.0,0.1057]
[1723371936436,0.00183755,61195.0,61194.0,0.11439]
[1723371936638,0.00183755,61199.0,61195.0,0.228776]
[1723371936845,0.00183755,61199.0,61197.0,0.114384]
[1723371937048,0.00183755,61198.0,61197.0,0.114384]
[1723371938171,0.00183755,61198.0,61197.0,0.115384]
[1723371938366,0.00183755,61198.0,61197.0,0.001]
[1723371938367,0.01583755,61198.0,61197.0,0.001]
[1723371938617,0.01583755,61198.0,61197.0,0.115384]
[1723371938822,0.01583755,61198.0,61197.0,0.001]
[1723371939022,0.00183755,61195.0,61194.0,0.19409]
[1723371939230,0.00183755,61195.0,61194.0,0.0797]
[1723371939431,0.00183755,61195.0,61194.0,0.19409]
[1723371939713,0.00183755,61195.0,61180.0,0.06741784]
[1723371939714,0.44442955,61190.0,61180.0,0.1854]
[1723371939859,0.45987235,61190.0,61183.0,0.114409]
[1723371940059,0.85248227,61190.0,61177.0,0.1854]
[1723371940285,1.16297727,61190.0,61176.0,0.228845]
[1723371940490,1.28745964,61190.0,61175.0,0.0009163]
[1723371940863,1.16297727,61190.0,61175.0,0.1153403]
[1723371941066,1.16297727,61190.0,61176.0,0.114423]
[1723371941272,1.16297727,61190.0,61175.0,0.0009163]
[1723371941273,1.16297727,61190.0,61177.0,0.114422]
[1723371941701,1.16297727,61190.0,61178.0,0.11442]
[1723371941702,1.16797727,61190.0,61178.0,0.11442]
[1723371942061,1.17013972,61190.0,61177.0,0.1057]
[1723371942271,1.17996657,61190.0,61177.0,0.1057]
[1723371942471,1.18180412,61190.0,61175.0,0.1153413]
[1723371942647,1.17996657,61190.0,61175.0,0.2297663]
[1723371942779,1.18189463,61190.0,61176.0,0.114422]
[1723371942988,1.18189463,61190.0,61177.0,0.11442]
[1723371943189,1.18005708,61190.0,61177.0,0.11442]
[1723371943404,1.18187419,61190.0,61175.0,0.1153393]
[1723371943669,1.18187419,61190.0,61176.0,0.114423]
[1723371944244,1.18003664,61190.0,61176.0,0.114423]
[1723371944647,1.18003664,61190.0,61177.0,0.114421]
[1723371944845,1.18187419,61190.0,61178.0,0.114419]
[1723371945600,1.18187419,61190.0,61180.0,0.1062]
[1723371946180,1.18003664,61190.0,61180.0,0.1062]
[1723371946497,1.18184638,61190.0,61180.0,0.1062]
[1723371946881,0.94322453,61190.0,61180.0,0.220615]
[1723371948223,0.94322453,61190.0,61180.0,0.1062]
[1723371948634,0.9530271,61190.0,61180.0,0.1062]
[1723371949932,0.9530271,61190.0,61180.0,0.220616]
[1723371950278,0.95286185,61190.0,61180.0,0.220616]
[1723371950432,0.95286185,61190.0,61180.0,0.1062]
[1723371950831,0.95286185,61190.0,61176.0,0.0842]
[1723371951055,1.18165685,61190.0,61176.0,0.1904]
[1723371951750,0.95286185,61190.0,61176.0,0.1904]
[1723371951958,0.95286185,61190.0,61177.0,0.114421]
[1723371952331,0.95286185,61190.0,61176.0,0.419246]
[1723371952332,0.87116185,61190.0,61176.0,0.419246]
[1723371952535,1.09995685,61190.0,61176.0,0.304823]
[1723371952764,0.87116185,61190.0,61177.0,0.114422]
[1723371952961,0.91989098,61190.0,61177.0,0.114422]
[1723371953610,0.87116185,61190.0,61176.0,0.419245]
[1723371953800,0.37934259,61190.0,61179.0,0.228834]
[1723371954000,0.37934259,61190.0,61186.0,0.1904]
[1723371954202,0.36383212,61190.0,61186.0,0.1904]
[1723371954375,0.14055763,61190.0,61186.0,0.1904]
[1723371954574,0.02616063,61190.0,61189.0,0.1153142]
[1723371954848,0.12523455,61190.0,61189.0,0.0009152]
[1723371954999,0.01083755,61190.0,61189.0,0.0009152]
[1723371955833,0.01083755,61190.0,61189.0,0.1153142]
[1723371955977,0.01083755,61190.0,61189.0,0.3441132]
[1723371956189,0.009,61190.0,61189.0,0.7633122]
[1723371956596,0.009,61190.0,61189.0,1.13508436]
[1723371956820,0.009,61190.0,61189.0,0.90628536]
[1723371957404,0.009,61190.0,61189.0,0.906285]
[1723371957607,0.009,61190.0,61189.0,0.677486]
[1723371958338,0.009,61190.0,61189.0,0.906285]
[1723371958761,0.004,61190.0,61189.0,0.906285]
[1723371959309,0.00183755,61193.0,61192.0,0.343182]
[1723371959713,0.00183755,61193.0,61192.0,0.35060257]
[1723371960510,0.00183755,61193.0,61192.0,0.12181457]
[1723371961530,0.00183755,61193.0,61192.0,0.12381457]
[1723371962047,0.00183755,61193.0,61192.0,0.12181457]
[1723371962571,0.00183755,61193.0,61192.0,0.12381457]
[1723371962723,0.00183755,61193.0,61192.0,0.12181457]
[1723371963113,0.00183755,61193.0,61192.0,0.12481457]
[1723371963320,0.114385,61197.0,61192.0,0.12481457]
[1723371963556,0.00183755,61193.0,61192.0,0.12481457]
[1723371964163,0.00183755,61193.0,61192.0,0.12581457]
[1723371964362,0.00183755,61193.0,61192.0,0.12181457]
[1723371964562,0.00183755,61193.0,61192.0,0.35151667]
[1723371964786,0.228758,61200.0,61193.0,0.220392]
[1723371964787,0.00183755,61194.0,61193.0,0.220392]
[1723371965178,0.00183755,61194.0,61193.0,0.22777717]
[1723371965381,0.116385,61197.0,61193.0,0.11338517]
[1723371965585,0.00183755,61194.0,61193.0,0.00738517]
[1723371965787,0.00183755,61194.0,61192.0,0.0009141]
[1723371965991,0.00183755,61193.0,61192.0,0.1153071]
[1723371966586,0.00183755,61196.0,61194.0,0.114389]
[1723371966989,0.11621855,61199.0,61195.0,0.114387]
[1723371967205,0.0487327,61207.0,61197.0,0.0809]
[1723371967206,0.01540942,61198.0,61197.0,0.0809]
[1723371967411,0.00183755,61203.0,61200.0,0.114378]
[1723371967615,0.00183755,61202.0,61198.0,0.228763]
[1723371967785,0.00183755,61202.0,61201.0,0.00735764]
[1723371967991,0.00183755,61202.0,61199.0,0.11438]
[1723371968193,0.00183755,61199.0,61197.0,0.0809]
[1723371968843,0.00183755,61199.0,61198.0,0.001]
[1723371969811,0.92205447,61199.0,61198.0,0.001]
[1723371969990,1.15081547,61199.0,61198.0,0.001]
[1723371970202,1.15081547,61199.0,61192.0,0.0009141]
[1723371970203,0.11622955,61193.0,61192.0,0.0009141]
[1723371970600,0.34501355,61193.0,61192.0,0.0009141]
[1723371970821,0.44821355,61193.0,61192.0,0.0009141]
[1723371971931,0.67699755,61193.0,61192.0,0.0009141]
[1723371972082,0.44821355,61193.0,61192.0,0.0019141]
[1723371972687,0.67699755,61193.0,61192.0,0.0019141]
[1723371972889,0.44821355,61193.0,61192.0,0.0019141]
[1723371973089,0.446376,61193.0,61192.0,0.0049141]
[1723371973289,0.527676,61193.0,61192.0,0.0049141]
[1723371973515,0.52951355,61193.0,61192.0,0.0009141]
[1723371973925,0.54990034,61193.0,61192.0,0.0009141]
[1723371974143,0.55690034,61193.0,61192.0,0.0019141]
[1723371974344,0.32811634,61193.0,61192.0,0.0019141]
[1723371974543,0.32811634,61193.0,61192.0,0.0009141]
[1723371974544,0.13661634,61193.0,61192.0,0.0009141]
[1723371974752,0.12122955,61193.0,61192.0,0.00831256]
[1723371974972,0.005,61193.0,61192.0,0.1153081]
[1723371975182,0.005,61193.0,61192.0,0.58028256]
[1723371975352,0.00183755,61195.0,61194.0,0.34317]
[1723371975763,0.00183755,61195.0,61194.0,0.35056629]
[1723371976954,0.00183755,61195.0,61194.0,0.12278629]
[1723371977755,0.00283755,61195.0,61194.0,0.12278629]
[1723371977947,0.00283755,61195.0,61194.0,0.00839629]
[1723371978083,0.11722555,61195.0,61194.0,0.00839629]
[1723371978300,0.1324768,61195.0,61194.0,0.00839629]
[1723371978689,0.00283755,61195.0,61194.0,0.00839629]
[1723371980928,0.115388,61195.0,61194.0,0.00839629]
[1723371981136,0.34600155,61195.0,61194.0,0.00839629]
[1723371981344,0.35951341,61195.0,61194.0,0.00839629]
[1723371981498,0.01818696,61195.0,61194.0,0.00839629]
[1723371981692,0.00283755,61195.0,61194.0,0.20368629]
[1723371982287,0.00283755,61195.0,61194.0,0.43246629]
[1723371982499,0.001,61195.0,61194.0,0.43246629]
[1723371982843,0.00283755,61195.0,61194.0,0.43246629]
[1723371983048,0.00283755,61195.0,61194.0,0.56819267]
[1723371983677,0.00283755,61195.0,61194.0,0.33941267]
[1723371983878,0.00283755,61195.0,61194.0,0.56819267]
[1723371984085,0.00283755,61195.0,61194.0,0.66779267]
[1723371984308,0.01807203,61195.0,61194.0,0.66779267]
[1723371984508,0.01623448,61195.0,61194.0,0.89657267]
[1723371984682,0.01623448,61195.0,61194.0,0.66778731]
[1723371984683,0.001,61195.0,61194.0,0.66778731]
[1723371985066,0.001,61195.0,61194.0,0.53206629]
[1723371985274,0.001,61195.0,61194.0,0.66778493]
[1723371985672,0.001,61195.0,61194.0,1.12534493]
[1723371986766,0.001,61195.0,61194.0,1.16344121]
[1723371986967,0.001,61195.0,61194.0,1.29915346]
[1723371987137,0.001,61195.0,61194.0,1.5502375]
[1723371987496,0.001,61195.0,61194.0,1.49297081]
[1723371987836,0.00183755,61203.0,61202.0,0.343125]
[1723371988185,0.00183755,61203.0,61202.0,0.14303155]
[1723371988526,0.00183755,61203.0,61202.0,0.0073193]
[1723371988764,0.01704787,61203.0,61202.0,0.0073193]
[1723371989230,0.00183755,61201.0,61200.0,0.343136]
[1723371989434,0.00183755,61201.0,61200.0,0.47884882]
[1723371989569,0.00183755,61201.0,61200.0,0.25009082]
[1723371989967,0.00183755,61201.0,61200.0,0.47884882]
[1723371990892,0.00183755,61206.0,61202.0,0.22875]
[1723371991154,0.01524222,61205.0,61203.0,0.114373]
[1723371991329,0.00183755,61204.0,61203.0,0.114373]
[1723371991537,0.01707977,61204.0,61203.0,0.114373]
[1723371992075,0.01524222,61204.0,61203.0,0.114373]
[1723371992277,0.01524222,61205.0,61200.0,0.228758]
[1723371992559,0.01524222,61204.0,61202.0,0.114374]
[1723371992759,0.01524222,61203.0,61202.0,0.114374]
[1723371992969,0.01524222,61205.0,61202.0,0.114374]
[1723371993191,0.01524222,61204.0,61202.0,0.114374]
[1723371993326,0.01524222,61203.0,61202.0,0.114374]
[1723371993685,0.114367,61206.0,61202.0,0.114374]
[1723371993900,0.0172197,61205.0,61203.0,0.114372]
[1723371994097,0.0152197,61204.0,61203.0,0.114372]
[1723371994298,0.0152197,61204.0,61203.0,0.115372]
[1723371994761,0.01705725,61204.0,61203.0,0.115372]
[1723371994888,0.0152197,61204.0,61203.0,0.114372]
[1723371995116,0.0152197,61206.0,61203.0,0.114372]
[1723371995722,0.0152197,61206.0,61203.0,0.115372]
[1723371995921,0.01522338,61205.0,61203.0,0.115372]
[1723371996239,0.01522338,61204.0,61203.0,0.115372]
[1723371996651,0.01522338,61206.0,61203.0,0.115372]
[1723371997384,0.01516294,61206.0,61204.0,0.0072663]
[1723371997919,0.001,61205.0,61204.0,0.0072663]
[1723371998127,0.001,61205.0,61204.0,0.3503803]
[1723371998328,0.00183755,61207.0,61206.0,0.114367]
[1723371998613,0.00183755,61207.0,61206.0,0.200567]
[1723371998845,0.00183755,61207.0,61206.0,0.43656612]
[1723371999037,0.00183755,61207.0,61206.0,0.20783112]
[1723371999471,0.00183755,61207.0,61206.0,0.09346412]
[1723371999674,0.000832,61208.0,61206.0,0.09346412]
[1723372000517,0.00183755,61207.0,61206.0,0.09346412]
[1723372000736,0.00183755,61207.0,61206.0,0.00726412]
[1723372000912,0.00183755,61206.0,61205.0,0.114369]
[1723372001556,0.004832,61208.0,61207.0,0.114366]
[1723372001756,0.001832,61208.0,61207.0,0.343098]
[1723372002053,0.000832,61208.0,61207.0,0.343098]
[1723372003530,0.000832,61208.0,61207.0,0.67453]
[1723372003755,0.000832,61208.0,61207.0,0.75993]
[1723372004393,0.003832,61208.0,61207.0,0.89562504]
[1723372004603,0.000832,61208.0,61207.0,0.89662504]
[1723372005010,0.001832,61208.0,61207.0,0.89662504]
[1723372005222,0.001832,61208.0,61207.0,0.89562504]
[1723372005404,0.001832,61208.0,61207.0,0.89662504]
[1723372005844,0.000832,61208.0,61207.0,0.89562504]
[1723372006043,0.00266955,61208.0,61207.0,0.89562504]
[1723372006196,0.00266955,61208.0,61207.0,0.75993]
[1723372006403,0.000832,61208.0,61207.0,0.75993]
[1723372007338,0.000832,61208.0,61207.0,0.89762504]
[1723372007585,0.000832,61208.0,61207.0,0.76193]
[1723372007784,0.000832,61208.0,61207.0,0.75993]
[1723372008117,0.000832,61208.0,61207.0,0.76193]
[1723372008322,0.000832,61208.0,61207.0,0.89762504]
[1723372008519,0.000832,61208.0,61207.0,0.89562504]
[1723372009110,0.000832,61208.0,61207.0,1.12635704]
[1723372010264,0.000832,61208.0,61207.0,1.12635616]
[1723372010477,0.000832,61208.0,61207.0,1.12435616]
[1723372010687,0.000832,61208.0,61207.0,1.12735616]
[1723372011380,0.000832,61208.0,61207.0,1.12635616]
[1723372011580,0.001832,61208.0,61207.0,1.12935616]
[1723372011782,0.001832,61208.0,61207.0,1.12735616]
[1723372011986,0.001832,61208.0,61207.0,1.13135616]
[1723372012162,0.001832,61208.0,61207.0,1.13859759]
[1723372013237,0.001832,61208.0,61207.0,0.90986559]
[1723372013829,0.001832,61208.0,61207.0,0.90985876]
[1723372017400,0.00366955,61208.0,61207.0,0.58607143]
[1723372017609,0.00366955,61208.0,61207.0,0.72176267]
[1723372018020,0.00366955,61208.0,61207.0,0.72176348]
[1723372018420,0.00366955,61208.0,61207.0,0.71776348]
[1723372018779,0.00366955,61208.0,61207.0,0.48903148]
[1723372018994,0.00266955,61208.0,61207.0,0.48603148]
[1723372019203,0.00366955,61208.0,61207.0,0.48603148]
[1723372019401,0.00366955,61208.0,61207.0,0.25729948]
[1723372019603,0.00366955,61208.0,61207.0,0.14293348]
[1723372019604,0.10306955,61208.0,61207.0,0.14293348]
[1723372019841,0.5479779,61208.0,61207.0,0.00724143]
[1723372020239,0.21660355,61207.0,61206.0,0.0009152]
[1723372020415,0.2318199,61207.0,61206.0,0.0009152]
[1723372020625,0.2318199,61207.0,61206.0,0.01174147]
[1723372020823,0.23191051,61207.0,61206.0,0.0009152]
[1723372021255,0.11754451,61207.0,61206.0,0.0009152]
[1723372021725,0.11754451,61207.0,61206.0,0.01174147]
[1723372022071,0.12054451,61207.0,61206.0,0.01174147]
[1723372022289,0.12654451,61207.0,61206.0,0.01274147]
[1723372022481,0.12470696,61207.0,61206.0,0.01274147]
[1723372022688,0.11870696,61207.0,61206.0,0.01174147]
[1723372022888,0.24091051,61207.0,61206.0,0.01274147]
[1723372023109,0.12654451,61207.0,61206.0,0.01274147]
[1723372023489,0.12354451,61207.0,61206.0,0.01274147]
[1723372023667,0.10823755,61207.0,61206.0,0.01274147]
[1723372023889,0.12655908,61207.0,61206.0,0.01274147]
[1723372024314,0.12355908,61207.0,61206.0,0.01274147]
[1723372024517,0.12655908,61207.0,61206.0,0.01274147]
[1723372024719,0.12055908,61207.0,61206.0,0.01174147]
[1723372025009,0.12055908,61207.0,61206.0,0.01274147]
[1723372025182,0.12655908,61207.0,61206.0,0.01274147]
[1723372026008,0.12655908,61207.0,61206.0,0.12710847]
[1723372026504,0.02015908,61207.0,61206.0,0.12610847]
[1723372026718,0.01815908,61207.0,61206.0,0.12610847]
[1723372026923,0.02115908,61207.0,61206.0,0.12610847]
[1723372027261,0.02115908,61207.0,61206.0,0.12249971]
[1723372027466,0.01899108,61207.0,61206.0,0.12610453]
[1723372027670,0.01899108,61207.0,61206.0,0.12910453]
[1723372027877,0.01900345,61207.0,61206.0,0.12910453]
[1723372028092,0.01800345,61207.0,61206.0,0.35783953]
[1723372028491,0.01800345,61207.0,61206.0,0.35883953]
[1723372029403,0.01800345,61207.0,61206.0,0.58757453]
[1723372029404,0.0161659,61207.0,61206.0,0.58757453]
[1723372029605,0.000832,61207.0,61206.0,0.7232777]
[1723372030144,0.000832,61207.0,61206.0,0.8274777]
[1723372031104,0.000832,61207.0,61206.0,0.82746749]
[1723372031902,0.000832,61207.0,61206.0,0.59873249]
[1723372032048,0.000832,61207.0,61206.0,0.49453249]
[1723372032244,0.01614787,61207.0,61206.0,0.49453249]
[1723372033018,0.01614787,61207.0,61206.0,0.49153249]
[1723372033226,0.01614787,61207.0,61206.0,0.49453249]
[1723372033817,0.01614787,61207.0,61206.0,0.49153249]
[1723372034244,0.01714787,61207.0,61206.0,0.49553249]
[1723372034431,0.01714787,61207.0,61206.0,0.49453249]
[1723372035551,0.01714787,61207.0,61206.0,0.49653249]
[1723372036184,0.01714787,61207.0,61206.0,0.49453249]
[1723372037491,0.01714787,61207.0,61206.0,0.49953249]
[1723372038436,0.001832,61207.0,61206.0,0.36383953]
[1723372038601,0.001832,61207.0,61206.0,0.49953924]
[1723372038806,0.01719824,61207.0,61206.0,0.49953924]
[1723372039008,0.01719824,61207.0,61206.0,0.27080425]
[1723372039209,0.11979824,61207.0,61206.0,0.27080425]
[1723372039919,0.01719824,61207.0,61206.0,0.27080425]
[1723372040262,0.01717661,61207.0,61206.0,0.27080565]
[1723372041095,0.01617661,61207.0,61206.0,0.26680565]
[1723372041290,0.01617661,61207.0,61206.0,0.26180565]
[1723372041646,0.01617661,61207.0,61206.0,0.26280565]
[1723372042093,0.01618091,61207.0,61206.0,0.2628055]
[1723372042496,0.01618091,61207.0,61206.0,0.2658055]
[1723372042698,0.01618091,61207.0,61206.0,0.26220068]
[1723372042917,0.01618091,61207.0,61206.0,0.2622132]
[1723372043124,0.01618091,61207.0,61206.0,0.2592132]
[1723372043340,0.01618091,61207.0,61206.0,0.2622132]
[1723372043743,0.01618091,61207.0,61206.0,0.2612132]
[1723372043947,0.01801846,61207.0,61206.0,0.2612132]
[1723372044148,0.01801846,61207.0,61206.0,0.2622132]
[1723372044738,0.01801846,61207.0,61206.0,0.26221425]
[1723372045444,0.01801846,61207.0,61206.0,0.14784725]
[1723372045642,0.01801846,61207.0,61206.0,0.14784854]
[1723372046306,0.32108446,61207.0,61206.0,0.14484854]
[1723372046507,0.32108446,61207.0,61206.0,0.00914523]
[1723372046719,0.55181646,61207.0,61206.0,0.00814523]
[1723372047039,0.305898,61207.0,61206.0,0.0009152]
[1723372047263,0.53663,61207.0,61206.0,0.0009152]
[1723372047482,0.19536955,61207.0,61206.0,0.00814374]
[1723372047671,0.19536955,61207.0,61206.0,0.0019152]
[1723372047829,0.20136955,61207.0,61206.0,0.00915052]
[1723372048169,0.19536955,61207.0,61206.0,0.00815052]
[1723372048391,0.33112087,61207.0,61206.0,0.00915052]
[1723372048568,0.33112087,61207.0,61206.0,0.00815052]
[1723372048569,0.30973555,61207.0,61206.0,0.00815052]
[1723372048773,0.30573555,61207.0,61206.0,0.00815052]
[1723372049004,0.30973555,61207.0,61206.0,0.00815052]
[1723372049629,0.32113248,61207.0,61206.0,0.0009152]
[1723372049804,0.32113248,61207.0,61206.0,0.0019152]